Cogmind - Beta 15 @@@ ROGUE MODE // 2025.06.07 @ 21:23:58 Player: BVrutally Odd Result: Destroyed by B-99 Colossus with Multirail Performance ------------- Evolutions (9) 4500 Regions Visited (22) 4400 Robots Destroyed (366) 1830 Value Destroyed (17138) 17138 Prototype IDs (47) 940 Alien Tech Used (2) 400 Bonus (7675) 7675 TOTAL SCORE: 36883 Bonus ------- High Alert Combat Kills 2965 Follower Combat Kills 667 Entered Garrisons 200 Entered DSFs 500 Network Hubs Disabled 600 Registered with UFD 300 Met Optimus in HQ 500 Met Zhirov 300 Met R17 at Cetus 500 Met R17 at Research 2000 Friendly Fire -857 Cogmind --------- Core Integrity 0/1600 Matter 75/300 Energy 100/100 System Corruption 5% Temperature Cool (0) Movement Core (50) Location -1/Garrison Parts ------- > --- POWER (3) -------- (None) > --- PROPULSION (7) --- (None) > --- UTILITY (10) ----- Experimental Optical Array Experimental Targeting Computer Graphene Brace > --- WEAPON (5) ------- (None) > --- INVENTORY (5) ---- Centrium Light Armor Plating Centrium Medium Armor Plating Experimental Focal Shield Experimental EM Shield Enhanced Hardcell Cannon Peak State ------------ > --- POWER ------------ Particle Reactor Light Quantum Reactor Improved Quantum Reactor > --- PROPULSION ------- Advanced Medium Treads Centrium Heavy Treads Centrium Heavy Treads > --- UTILITY ---------- Advanced Heat Sink Large Storage Unit Long-range Sensor Array Advanced Signal Interpreter Experimental Targeting Computer Experimental Targeting Computer Experimental Core Analyzer Centrium Medium Armor Plating > --- WEAPON ----------- Nova Cannon Hypervelocity Mass Driver Hypervelocity Mass Driver Hypervelocity Mass Driver Hypervelocity Mass Driver > --- INVENTORY -------- Advanced Medium Treads Advanced Coolant Injector Deep Structural Scanner Expert System Improved Weapon Cycler Powered Armor Graphene Brace Experimental Focal Shield Experimental EM Shield Advanced Force Field Long-range Tractor Beam Transdimensional Reconstructor Compact HERF Cannon Compact HERF Cannon Gamma Bomb Array [Rating: 166] Favorites ----------- Power Reinforced Fission Core Engine Light Angular Momentum Engine Power Core Reinforced Fission Core Reactor Light Antimatter Reactor Propulsion Light Treads Treads Light Treads Leg Thunder Leg Hover Unit Cooled Gravmag System Flight Unit Impulse Thruster Array Utility Experimental Targeting Computer Device Advanced Heat Sink Storage High-capacity Storage Unit Processor Experimental Targeting Computer Hackware Hacking Suite Protection Light Armor Plating Weapon KE Penetrator Energy Gun Plasma Rifle Energy Cannon Heavy Plasma Cannon Ballistic Gun KE Penetrator Ballistic Cannon Hypervelocity Mass Driver Launcher Heavy Shock Bomb Launcher Impact Weapon Hammer Slashing Weapon Chainsword Build | -11 -10 -9 -8 -8 -8 -8 -6 -6 -5 -5 -5 -5 -5 -4 -4 -4 -4 -3 -3 -2 -1 -1 ------- Run | Yrd Mat Mat Mat Sto Rec Scr Fac DSF Fac Ext Cet Arc Hub Fac Upp Upp Zhi Pro Res Res Acc Gar Slots Evolved 18 | . . 2 2 . . . 4 . 2 . . . . 2 . . . . 2 2 2 . Power 2 | . . . . . . . 1 . . . . . . . . . . . 1 . . . Propulsion 5 | . . . 1 . . . 1 . . . . . . 1 . . . . . . 2 . Utility 8 | . . 1 . . . . 2 . 2 . . . . . . . . . 1 2 . . Weapon 3 | . . 1 1 . . . . . . . . . . 1 . . . . . . . . Parts Attached 244 | 7 11 27 15 29 1 9 4 9 6 12 11 . 10 25 1 . 3 1 51 6 4 2 Power 33 | 1 1 3 . 4 . 2 . 2 . 2 3 . 2 2 . . . . 10 1 . . Engine 11 | 1 1 3 . 1 . 2 . 2 . 1 . . . . . . . . . . . . Core 6 | . . . . 3 . . . . . 1 . . 2 . . . . . . . . . Reactor 16 | . . . . . . . . . . . 3 . . 2 . . . . 10 1 . . Propulsion 54 | 2 . 9 4 11 . 3 . 4 1 1 2 . . 5 . . 1 . 10 1 . . Treads 40 | 2 . 9 4 11 . 3 . . . . 2 . . 5 . . . . 4 . . . Leg 6 | . . . . . . . . 4 1 1 . . . . . . . . . . . . Wheel . | . . . . . . . . . . . . . . . . . . . . . . . Hover 2 | . . . . . . . . . . . . . . . . . 1 . . 1 . . Flight 6 | . . . . . . . . . . . . . . . . . . . 6 . . . Utility 87 | 2 3 7 2 5 1 1 4 2 3 6 2 . 6 10 1 . 1 1 22 4 3 1 Device 34 | 1 . 1 1 2 . . 1 1 2 3 . . 4 5 . . . 1 9 1 2 . Storage 6 | 1 3 . . . . . . . . . . . . 1 . . . . 1 . . . Processor 14 | . . . . . . . 2 1 . 1 . . 1 1 1 . . . 6 . 1 . Hackware 1 | . . . . . . . . . . . . . . . . . . . . 1 . . Protection 32 | . . 6 1 3 1 1 1 . 1 2 2 . 1 3 . . 1 . 6 2 . 1 Artifact . | . . . . . . . . . . . . . . . . . . . . . . . Weapon 70 | 2 7 8 9 9 . 3 . 1 2 3 4 . 2 8 . . 1 . 9 . 1 1 Energy Gun 12 | 1 . 1 1 3 . . . . . . 2 . . 2 . . 1 . . . . 1 Energy Cannon 9 | . . 2 . . . . . . 1 1 . . . 2 . . . . 3 . . . Ballistic Gun 26 | 1 4 5 4 3 . 1 . . 1 1 2 . 2 2 . . . . . . . . Ballistic Cannon 9 | . . . 2 . . . . 1 . 1 . . . . . . . . 4 . 1 . Launcher 12 | . 2 . 2 3 . 1 . . . . . . . 2 . . . . 2 . . . Special Weapon . | . . . . . . . . . . . . . . . . . . . . . . . Impact Weapon 1 | . 1 . . . . . . . . . . . . . . . . . . . . . Slashing Weapon 1 | . . . . . . 1 . . . . . . . . . . . . . . . . Piercing Weapon . | . . . . . . . . . . . . . . . . . . . . . . . Special Melee Weapon . | . . . . . . . . . . . . . . . . . . . . . . . Unidentified Prototypes 32 | . . 3 1 6 . . . 1 . . 4 . 3 1 . . 3 . 8 1 . 1 Corrupted Parts 5 | . . . . 2 . . . . . . . . . . . . . . 3 . . . System Corruption 34 | . . . . 7 . . . . . . . . . . . . . . 27 . . . Parts Lost 86 | . . 2 4 10 . 1 . 1 . 2 4 . 6 12 . . . . 32 . . 12 Power 18 | . . . . 3 . . . . . 1 1 . 3 . . . . . 8 . . 2 Propulsion 15 | . . . . 2 . . . . . . . . . 2 . . . . 8 . . 3 Utility 30 | . . 2 3 2 . . . . . 1 1 . 1 6 . . . . 7 . . 7 Weapon 23 | . . . 1 3 . 1 . 1 . . 2 . 2 4 . . . . 9 . . . Highest Loss Streak 14 | . . 1 2 6 . 1 . 1 . 1 2 . 2 8 . . . . 14 . . 7 To Critical Strikes 2 | . . . . . . . . . . . 1 . . . . . . . 1 . . . Average Backups 16 | 2 9 18 18 19 20 19 17 18 17 17 16 17 16 15 15 15 14 15 14 4 4 4 Power . | . . 1 2 1 2 1 . . . . . 2 . 1 1 1 1 1 . . . . Propulsion 3 | 1 3 5 5 7 7 6 3 3 3 3 2 2 2 . . . . . . . . . Utility 6 | . . 1 2 3 4 5 7 8 9 9 7 8 9 9 10 10 10 10 9 2 3 3 Weapon 5 | . 5 10 8 7 7 6 5 4 4 3 4 4 3 3 4 4 3 3 3 . . . Tool/Special . | . . . . . . . . . . . . . . . . . . . . . . . Unused Backups 24 | . . 5 1 2 1 . . . . 1 2 . 2 6 . . . . 4 . . . Power 2 | . . . . . . . . . . . . . . 2 . . . . . . . . Propulsion 4 | . . 2 . . . . . . . . 1 . 1 . . . . . . . . . Utility 8 | . . . . . 1 . . . . 1 1 . . 3 . . . . 2 . . . Weapon 10 | . . 3 1 2 . . . . . . . . 1 1 . . . . 2 . . . Tool/Special . | . . . . . . . . . . . . . . . . . . . . . . . Average Slot Usage (%) 93 | . 99 99 98 97 100 99 98 100 98 99 90 88 86 87 94 94 69 94 90 64 60 45 Engine 2 | . 14 11 9 1 . . 13 13 10 6 1 . . . . . . . . . . . Core 4 | . . . . 6 9 9 . . . 3 1 . 1 6 5 5 5 5 2 . . . Reactor 3 | . . . . . . . . . . . 7 11 8 3 5 5 5 5 10 7 8 4 Treads 18 | . 28 22 27 26 27 27 25 7 . . 7 11 11 15 21 21 21 21 15 . . . Leg 2 | . . . . . . . . 18 22 23 6 . . . . . . . . . . . Device 12 | . 14 6 6 9 9 9 6 6 14 14 16 17 17 16 14 15 15 15 16 12 12 9 Storage 6 | . 14 11 9 9 9 9 6 6 5 5 5 5 5 4 5 5 5 5 3 . . . Processor 7 | . . . . . . . 11 13 11 11 6 5 5 6 13 15 15 15 14 20 18 17 Protection 6 | . . 15 10 8 9 9 6 6 7 7 11 11 10 6 1 . . . 1 7 5 2 Energy Gun 4 | . 9 . . 6 9 7 . . . . 2 5 4 7 10 10 . 10 2 . . . Energy Cannon 2 | . . 1 . 1 . . . . 1 4 . . . 3 5 5 . 5 4 . . . Ballistic Gun 15 | . 16 31 30 24 27 27 20 20 14 10 14 17 17 12 10 10 . 10 1 . . . Ballistic Cannon 3 | . . . 4 2 . . 4 6 4 4 3 . . 1 . . . . 13 . . 1 Peak Build Rating 166 | 7 8 18 25 32 30 40 50 75 87 97 134 135 139 140 118 117 118 118 166 134 130 130 Average Rating 80 | 5 7 14 18 26 30 32 49 64 81 90 119 134 131 120 113 114 89 117 149 130 123 89 On Entrance 78 | . 7 8 14 22 30 30 40 50 72 87 97 134 135 129 118 114 114 118 118 113 126 122 Naked Turns . | . . . . . . . . . . . . . . . . . . . . . . . Heaviest Build 164 | 11 50 63 70 70 62 64 81 81 95 109 127 124 125 138 92 85 87 87 164 38 38 48 Greatest Support 190 | 40 40 40 60 60 60 63 83 92 92 94 160 160 160 187 157 157 157 157 190 38 38 38 Greatest Overweight (x) 3 | . 1 1 1 1 1 1 . 1 3 1 1 . . . . . . . 2 . . 2 Average Overweight (x) . | . . 1 . . 1 . . . . . . . . . . . . . . . . . Largest Inventory Capacity 25 | 8 20 20 20 20 20 20 20 20 20 20 20 20 20 20 15 15 15 15 25 5 5 5 Average Capacity 17 | 7 17 20 20 20 20 20 20 20 20 20 20 20 20 16 15 15 15 15 14 5 5 5 Most Carried 20 | 3 15 20 20 20 20 20 20 20 20 20 20 20 20 20 15 15 15 15 15 5 5 5 Average Carried 16 | 2 9 18 18 19 20 19 18 19 19 19 19 19 19 15 15 15 14 15 14 3 4 4 Final Capacity 20 | 8 20 20 20 20 20 20 20 20 20 20 20 20 20 15 15 15 15 15 5 5 5 5 Final Carried 20 | 3 15 20 20 20 20 20 20 20 20 19 20 20 20 15 15 15 15 15 4 5 5 5 Class Distribution -------------------- 65% | Scavenger-Tank 11% | Scavenger-Skirmisher 4% | Scavenger-Mutant 4% | Mutant 4% | Scavenger-Gunner Dominant Class ---------------- Mutant | -10/Materials Scavenger-Tank | -9/Materials Scavenger-Tank | -8/Materials Scavenger-Tank | -8/Storage Scavenger-Tank | -8/Recycling Scavenger-Tank | -8/Scraptown Scavenger-Gunner | -6/Factory Gunner | -6/DSF Derelict-Tank | -5/Factory Scavenger-Tank | -5/Extension Scavenger-Tank | -5/Cetus Scavenger-Tank | -5/Archives Scavenger-Tank | -5/Hub_04(d) Scavenger-Tank | -4/Factory Scavenger-Skirmisher | -4/Upper Caves Scavenger-Skirmisher | -4/Upper Caves Scavenger-Mutant | -4/Zhirov Scavenger-Skirmisher | -3/Proximity Caves Scavenger-Tank | -3/Research Scavenger-Mutant | -2/Research Scavenger-Scout | -1/Access Scavenger-Mutant | -1/Garrison Resources | -11 -10 -9 -8 -8 -8 -8 -6 -6 -5 -5 -5 -5 -5 -4 -4 -4 -4 -3 -3 -2 -1 -1 ----------- Run | Yrd Mat Mat Mat Sto Rec Scr Fac DSF Fac Ext Cet Arc Hub Fac Upp Upp Zhi Pro Res Res Acc Gar Matter Collected 12988 | 219 369 1044 452 1601 224 430 110 763 26 882 336 94 1023 1239 358 104 . 155 3364 . 10 185 Remotely 3665 | . . . . . . . . . . . . . 258 909 82 . . . 2416 . . . Salvage Created 19181 | 25 451 1626 723 2071 984 407 162 977 26 1519 353 324 1955 2470 320 329 . 153 4108 . 14 184 Parts 851 | 8 32 97 40 101 36 21 5 46 2 52 13 15 106 102 22 6 . 2 144 . . 1 Haulers Intercepted 17 | . 2 6 2 5 . . . . . . . . . . . . . . 2 . . . Recyclers Shooed 12 | 1 . 1 . 4 3 . . . . . . . . 2 . . . . 1 . . . Parts Field Recycled . | . . . . . . . . . . . . . . . . . . . . . . . Retrieved Matter . | . . . . . . . . . . . . . . . . . . . . . . . Parts Self-Destructed 28 | . . . . . . . . . . . . . . . 22 6 . . . . . . Prevented . | . . . . . . . . . . . . . . . . . . . . . . . Kills | -11 -10 -9 -8 -8 -8 -8 -6 -6 -5 -5 -5 -5 -5 -4 -4 -4 -4 -3 -3 -2 -1 -1 ------- Run | Yrd Mat Mat Mat Sto Rec Scr Fac DSF Fac Ext Cet Arc Hub Fac Upp Upp Zhi Pro Res Res Acc Gar Combat Hostiles Destroyed 270 | . 14 26 16 30 3 8 . 12 . 15 6 3 34 29 8 2 . . 62 . . 2 Melee 4 | . . . . . . . . . . 3 . . 1 . . . . . . . . . Guns 145 | . 7 23 8 21 3 5 . 7 . 4 6 3 33 17 7 1 . . . . . . Cannons 76 | . . 3 2 4 . . . 5 . 5 . . . 2 1 1 . . 51 . . 2 AOE 28 | . 7 . 6 5 . 3 . . . 2 . . . 2 . . . . 3 . . . Classes Destroyed 26 | 1 6 3 . 1 . 3 . 2 . 2 . . 2 2 . . . . 4 . . . Worker 24 | . 1 4 . 6 . . 1 . . . . . 6 6 . . . . . . . . Builder 9 | . . 2 . 2 1 . . . . 1 . . . 2 . . . . . . 1 . Tunneler 6 | 2 1 . 1 . . . . . 1 . . . . 1 . . . . . . . . Hauler 17 | . 2 6 2 5 . . . . . . . . . . . . . . 2 . . . Recycler 22 | . 1 1 . 6 10 . 1 . . 3 . . . . . . . . . . . . Mechanic 1 | . . . . . . . . . . . . . . 1 . . . . . . . . Operator 5 | . 1 . . 1 . . . . . . . 1 . 2 . . . . . . . . Watcher 8 | . . 3 . 1 . . . . . . . . 1 2 . . . . 1 . . . Swarmer 39 | . 8 4 4 2 . . . . . 1 . . 11 . 5 . . . 4 . . . Saboteur 1 | . . . . . . . . . . . . . 1 . . . . . . . . . Grunt 103 | . 6 14 8 17 . . . 8 . 8 . . 11 13 . . . . 16 . . 2 Brawler 2 | . . . . . . . . . . . . . . . . . . . 2 . . . Duelist 9 | . . . . 3 . . . 1 . 1 . . 1 3 . . . . . . . . Protector 1 | . . . . . . . . . . . . . 1 . . . . . . . . . Sentry 38 | . . 8 4 8 3 . . 1 . 3 . 3 3 3 1 . . . 1 . . . Demolisher 4 | . . . . . . . . . . . . . . . . . . . 4 . . . Specialist 1 | . . . . . . . . 1 . . . . . . . . . . . . . . Hunter 12 | . . . . . . . . . . . . . 2 2 . 2 . . 6 . . . Programmer 12 | . . . . . . . . . . . . . . 8 2 . . . 2 . . . Heavy 2 | . . . . . . . . 1 . . . . 1 . . . . . . . . . Cetus Guard 6 | . . . . . . . . . . . 6 . . . . . . . . . . . Lightning 3 | . . . . . . . . . . . . . 3 . . . . . . . . . Striker 23 | . . . . . . . . . . . . . . . . . . . 23 . . . Executioner 4 | . . . . . . . . . . . . . . . . . . . 4 . . . Federalist 2 | . . . . . . 2 . . . . . . . . . . . . . . . . Explorer 2 | . . . . . . 2 . . . . . . . . . . . . . . . . Scrapper 4 | . . . . . . 4 . . . . . . . . . . . . . . . . Packrat 2 | . . . . . . . . . . . . . . . . . . 2 . . . . Thug 2 | . . . . . . . . . . 2 . . . . . . . . . . . . Savage 1 | . . . . . . . . . . 1 . . . . . . . . . . . . Butcher 1 | . . . . . . . . . . 1 . . . . . . . . . . . . Guerrilla 1 | . . . . . . . . . . 1 . . . . . . . . . . . . Revision 1 | . . . . . . . . . . . . . . . . . . . 1 . . . Best Kill Streak 13 | 1 5 4 8 9 6 5 2 6 1 5 4 4 11 13 6 2 . . 11 . 1 2 Combat Bots Only 11 | . 5 4 5 8 1 5 . 6 . 5 4 3 7 7 6 2 . . 11 . . 2 Max Kills in Single Turn 4 | 1 3 2 3 4 1 3 1 2 1 2 1 1 3 4 2 1 . 1 2 . 1 1 Gunslinging 2 | . . 1 . 1 . . . . . . . . 2 1 1 . . . . . . . Exploded 4 | . 3 . 3 4 . 3 . . . 2 . . . 1 . . . . 2 . . . Melee 1 | . . . . . . . . . . 1 . . 1 . . . . . . . . . Uniques/NPCs Destroyed . | . . . . . . . . . . . . . . . . . . . . . . . Combat | -11 -10 -9 -8 -8 -8 -8 -6 -6 -5 -5 -5 -5 -5 -4 -4 -4 -4 -3 -3 -2 -1 -1 -------- Run | Yrd Mat Mat Mat Sto Rec Scr Fac DSF Fac Ext Cet Arc Hub Fac Upp Upp Zhi Pro Res Res Acc Gar Hostile Shots Fired 1676 | . 49 106 60 159 . 51 . 91 . 57 53 6 142 164 17 16 . . 491 47 . 167 Missed 508 | . 18 24 13 51 . 15 . 28 . 17 16 2 28 37 7 6 . . 168 29 . 49 Hits 1168 | . 31 82 47 108 . 36 . 63 . 40 37 4 114 127 10 10 . . 323 18 . 118 Melee 67 | . . . . 1 . 1 . 2 . . . . 2 8 . . . . 53 . . . Projectile 1101 | . 31 82 47 107 . 35 . 61 . 40 37 4 112 119 10 10 . . 270 18 . 118 AOE 1 | . . . . . . . . . . . . . . . . . . . 1 . . . Critical Strikes 71 | . . 3 1 8 . 2 . 2 . . 8 . 11 14 1 . . . 11 1 . 9 Actively Blocked 12 | . . . . . . . . . . . . . . . . . . . 2 1 . 9 Part Disruptions 2 | . . . . . . . . 2 . . . . . . . . . . . . . . Damage Taken 22857 | . 300 988 689 1862 . 793 . 1068 . 812 1077 97 2883 2058 117 98 . . 6923 319 92 2681 Core 3861 | . 115 142 73 135 . 97 . 103 . 124 79 . 198 26 5 12 . . 1100 135 . 1517 Absorbed by Shields 1798 | . . 58 . . . . . 172 . 72 . . . 170 . 76 . . 1250 . . . Reduced by Siege Mode 152 | . . . . . . . . . . . . . 28 38 . . . . 86 . . . Redirected to Shielding 110 | . . 3 . . . . . . . . . . . . . . . . . 19 60 28 Ignored by Resistances 1555 | . . . . . . . . . . . . . 98 521 64 . . . 805 67 . . Core Remaining (%) 67 | 100 54 64 . . . 44 . 87 . . . . 59 . . . . 96 15 90 . . Volleys Fired 781 | 12 32 87 29 106 17 17 5 34 8 40 17 7 65 80 17 20 . 11 148 . 5 24 Largest 5 | 2 2 3 4 4 4 4 1 4 4 4 4 4 4 5 5 5 . 2 5 . 1 1 Hottest 342 | 60 60 114 114 165 123 117 30 117 117 201 228 183 185 300 300 300 . 165 342 . 58 94 Shots Fired 2299 | 24 63 246 106 347 68 58 5 135 11 145 54 24 258 243 50 36 . 15 382 . 5 24 Gun 1602 | 24 54 229 94 320 68 42 5 101 3 70 42 24 258 189 43 16 . 4 15 . . 1 Cannon 655 | . . 17 6 23 . 13 . 34 8 75 12 . . 41 7 20 . 11 360 . 5 23 Launcher 42 | . 9 . 6 4 . 3 . . . . . . . 13 . . . . 7 . . . Special . | . . . . . . . . . . . . . . . . . . . . . . . Kinetic 1781 | 12 31 229 100 285 50 55 5 135 4 105 44 21 198 147 21 8 . . 303 . 5 23 Thermal 421 | 12 23 17 . 45 . . . . 7 40 10 3 60 83 29 28 . 15 48 . . 1 Explosive 26 | . 9 . 6 4 . 3 . . . . . . . . . . . . 4 . . . Electromagnetic 71 | . . . . 13 18 . . . . . . . . 13 . . . . 27 . . . Robot Hit Streak 45 | 3 11 12 9 24 9 6 1 15 3 15 10 7 24 26 10 12 . 8 45 . 6 20 Robot Miss Streak 7 | 3 4 3 4 7 2 5 3 6 . 6 2 2 4 3 1 2 . . 2 . . 1 Penetration Max 1 | . . . . . . . 1 1 . 1 1 . 1 1 1 . . . 1 . . . Secondary Targets 33 | . 1 5 1 7 . . . . . . 1 . 14 3 1 . . . . . . . Max Gunslinging Chain 2 | . 1 1 1 1 . . . . . . 1 . 2 1 1 . . . . . . . Shots Hit Robots 1442 | 12 40 154 68 222 44 33 3 105 1 91 41 16 165 134 27 23 . 4 235 . 2 22 Core Hits 751 | 5 26 64 47 98 23 26 2 60 1 69 18 12 85 93 12 8 . 2 93 . . 7 Critical Kills 59 | . . 1 . 1 . . . . . 1 1 2 4 2 . 1 . . 46 . . . Critical Parts Destroyed 73 | . 1 1 . 2 1 . . . . 1 1 . 6 1 . . . . 59 . . . Critical Strikes 177 | . 1 2 . 7 1 . . . . 3 2 3 11 5 4 1 . . 135 . . 2 Burn 10 | . . . . 4 . . . . . . . . . 2 4 . . . . . . . Meltdown 3 | . . . . . . . . . . 1 . . . . . 1 . . 1 . . . Destroy 161 | . . 2 . 3 1 . . . . 2 2 3 11 3 . . . . 134 . . . Blast 2 | . . . . . . . . . . . . . . . . . . . . . . 2 Smash 1 | . 1 . . . . . . . . . . . . . . . . . . . . . Melee Attacks 24 | . 6 . . 2 . 7 2 1 . 6 . . . . . . . . . . . . Impact 8 | . 6 . . 2 . . . . . . . . . . . . . . . . . . Slashing 16 | . . . . . . 7 2 1 . 6 . . . . . . . . . . . . Piercing . | . . . . . . . . . . . . . . . . . . . . . . . Sneak Attacks 8 | . 3 . . . . . 2 . . 3 . . . . . . . . . . . . Combat Hostiles 2 | . . . . . . . . . . 2 . . . . . . . . . . . . Follow-up Attacks . | . . . . . . . . . . . . . . . . . . . . . . . Damage Inflicted 39380 | 121 1088 2269 1274 4952 801 878 207 2317 14 3655 1353 508 5337 5842 669 582 . 107 6304 . 95 1007 Guns 22559 | 121 431 1962 751 3570 801 449 44 1630 14 1125 1062 508 5318 3587 636 232 . 45 245 . . 28 Cannons 10654 | . . 307 122 309 . 171 . 687 . 1650 291 . . 511 33 350 . 62 5109 . 95 957 Explosions 5564 | . 551 . 401 1051 . 258 . . . 616 . . . 1737 . . . . 950 . . . Melee 528 | . 106 . . . . . 163 . . 259 . . . . . . . . . . . . Ramming 75 | . . . . 22 . . . . . 5 . . 19 7 . . . . . . . 22 Kinetic 25040 | 47 257 1962 873 2895 445 620 44 2317 14 1804 1073 457 3984 2785 306 101 . . 4004 . 95 957 Thermal 7504 | 74 174 307 . 739 . . . . . 1587 280 51 1334 1379 363 481 . 107 600 . . 28 Explosive 2572 | . 551 . 401 996 . 258 . . . . . . . . . . . . 366 . . . Electromagnetic 3661 | . . . . 300 356 . . . . . . . . 1671 . . . . 1334 . . . Impact 106 | . 106 . . . . . . . . . . . . . . . . . . . . . Slashing 422 | . . . . . . . 163 . . 259 . . . . . . . . . . . . Piercing . | . . . . . . . . . . . . . . . . . . . . . . . Highest Corruption 30 | . . . . 10 10 . . 1 . . . . 10 3 3 3 3 3 30 . 2 5 Average Corruption 3 | . . . . 5 10 . . 1 . . . . 6 2 3 3 3 3 1 . 2 2 Corruption Purged . | . . . . . . . . . . . . . . . . . . . . . . . Corruption Blocked . | . . . . . . . . . . . . . . . . . . . . . . . Effects 204 | . . . . 38 23 . . 3 . . . . 18 22 33 15 10 8 32 . . 2 Message Errors 44 | . . . . 9 6 . . 1 . . . . 4 8 5 3 1 . 7 . . . Matter Fused 43 | . . . . 6 5 . . . . . . . 5 1 12 3 . 3 7 . . 1 Heat Flow Errors 28 | . . . . 5 4 . . . . . . . 3 4 5 1 3 1 2 . . . Energy Discharges 28 | . . . . 7 3 . . . . . . . 1 2 4 2 1 2 6 . . . Parts Rejected 1 | . . . . . . . . . . . . . . . . . . . . . . 1 Parts Fused 2 | . . . . . . . . . . . . . . . 1 . . . 1 . . . Data Loss (minor) 24 | . . . . 4 2 . . . . . . . 1 3 2 3 5 1 3 . . . Data Loss (major) 12 | . . . . 2 . . . . . . . . 4 2 3 . . . 1 . . . Misfires 10 | . . . . 2 1 . . . . . . . . 2 . 1 . 1 3 . . . Alerts 5 | . . . . 3 . . . 1 . . . . . . . 1 . . . . . . Misdirections 1 | . . . . . 1 . . . . . . . . . . . . . . . . . Weapon Failures 6 | . . . . . 1 . . 1 . . . . . . 1 1 . . 2 . . . Overload Shots . | . . . . . . . . . . . . . . . . . . . . . . . Overflow Damage 311 | . 40 . 1 . . 20 . . . 29 . . . 96 . 28 . . 26 . 45 26 Projectiles 188 | . . . . . . . . . . 13 . . . 61 . 28 . . 15 . 45 26 Explosions 83 | . . . 1 . . 20 . . . 16 . . . 35 . . . . 11 . . . Melee 40 | . 40 . . . . . . . . . . . . . . . . . . . . . Knockbacks 89 | . 1 . . 3 . 4 . 20 . 6 . . 1 1 . . . . 46 . . 7 Impact 3 | . 1 . . . . . . . . . . . 1 1 . . . . . . . . Kinetic 81 | . . . . 3 . 4 . 18 . 6 . . . . . . . . 43 . . 7 Secondary 5 | . . . . . . . . 2 . . . . . . . . . . 3 . . . Self-Inflicted Damage 367 | . 11 . 43 141 . . . . . . . . . 11 . . . . 150 . . 11 Shots 18 | . 1 . 2 3 . . . . . . . . . 1 . . . . 11 . . . Rammed 11 | . . . . 4 . . . . . . . . 3 1 . . . . . . . 3 Targets Rammed 13 | . . . . 5 . . . . . 1 . . 3 1 . . . . . . . 3 Kicked 1 | . . . . . . . . . . 1 . . . . . . . . . . . . Crushed 1 | . . . . 1 . . . . . . . . . . . . . . . . . . Highest Temperature 455 | 40 36 455 209 311 212 250 . 107 40 351 306 92 372 365 219 195 153 145 434 . . . Average Temperature 85 | 22 21 76 76 82 69 105 . 45 20 103 90 34 133 117 44 56 84 90 73 . . . Received Heat Transfer 4174 | . 90 477 288 927 . 284 . 378 . 237 81 . 372 373 . . . . 370 27 . 270 Effects 17 | . . 2 . . . . . . . . . . 4 8 . . . . 3 . . . Shutdowns 2 | . . . . . . . . . . . . . . . . . . . 2 . . . Energy Bleed 4 | . . . . . . . . . . . . . 2 1 . . . . 1 . . . Interference 10 | . . 1 . . . . . . . . . . 2 7 . . . . . . . . Matter Decay 1 | . . 1 . . . . . . . . . . . . . . . . . . . . Siege Activations 9 | . . . . . . . . . . . . . 2 4 1 . . . 2 . . . Total Turns 177 | . . . . . . . . . . . . . 54 53 14 . . . 56 . . . Longest Duration 43 | . . . . . . . . . . . . . 34 22 14 . . . 43 . . . Martial Activations . | . . . . . . . . . . . . . . . . . . . . . . . Shielding Activations . | . . . . . . . . . . . . . . . . . . . . . . . Robots Disrupted 1 | . . . . . . . . . . . . . . . . . . . 1 . . . Combat Hostiles 1 | . . . . . . . . . . . . . . . . . . . 1 . . . Robots Corrupted 19 | . 1 . . . . . . . . . . . . 10 . . . . 8 . . . Combat Hostiles 16 | . . . . . . . . . . . . . . 8 . . . . 8 . . . Parts Fried 29 | . . . . . . . . . . . . . . 15 . . . . 14 . . . Impact Corruptions 3 | . 3 . . . . . . . . . . . . . . . . . . . . . Robots Melted 3 | . . . . . . . . . . 1 . . . . . 1 . . 1 . . . Combat Hostiles 2 | . . . . . . . . . . 1 . . . . . 1 . . . . . . Parts Melted 18 | . . 1 . . . 2 . . . 1 1 . 1 5 5 1 . . 1 . . . Heat Transferred 11834 | 175 400 555 . 1691 . . . . . 1750 359 74 1591 2479 1070 824 . 200 629 . . 37 Parts Sabotaged 2 | . . . . . . . . . . . . . 2 . . . . . . . . . Parts Stolen . | . . . . . . . . . . . . . . . . . . . . . . . Parts Stripped . | . . . . . . . . . . . . . . . . . . . . . . . Power Chain Reactions 5 | . . . . 1 . . . . . . . . . 2 . . . . 2 . . . Alert | -11 -10 -9 -8 -8 -8 -8 -6 -6 -5 -5 -5 -5 -5 -4 -4 -4 -4 -3 -3 -2 -1 -1 ------- Run | Yrd Mat Mat Mat Sto Rec Scr Fac DSF Fac Ext Cet Arc Hub Fac Upp Upp Zhi Pro Res Res Acc Gar Maximum Alert Level 4 | . 1 1 2 2 1 . . 1 . 1 1 . 3 3 . . . . 4 2 2 2 Low Security (%) 52 | 100 87 79 23 42 51 . 100 79 100 58 62 100 8 . . . . . 68 . . . Level 1 21 | . 12 20 69 17 48 . . 20 . 41 38 . 29 . . . . . 15 . 80 66 Level 2 13 | . . . 6 39 . . . . . . . . 25 38 . . . . 5 100 20 33 Level 3 10 | . . . . . . . . . . . . . 36 61 . . . . 6 . . . Level 4 1 | . . . . . . . . . . . . . . . . . . . 4 . . . Level 5 . | . . . . . . . . . . . . . . . . . . . . . . . High Security . | . . . . . . . . . . . . . . . . . . . . . . . Max Security . | . . . . . . . . . . . . . . . . . . . . . . . Sterilizations 1 | . . . . . . . . 1 . . . . . . . . . . . . . . Peak Influence 1313 | 5 217 350 414 564 249 . 15 276 144 379 234 192 1016 935 . . . . 1313 680 439 443 Initial 675 | . . 34 135 154 209 . . 10 144 6 186 69 48 494 . . . . . 675 374 368 Average 267 | . 112 108 276 283 115 . 1 136 79 185 189 150 542 703 . . . . 192 638 378 394 Influence Increases 9663 | 10 432 801 541 1235 205 . 30 276 19 925 218 160 1320 1147 180 60 . . 1768 60 146 130 Destroy 0b10 Robot/C 5500 | . 280 520 320 600 60 . . 240 . 520 160 80 660 580 160 40 . . 1240 . . 40 Destroy 0b10 Robot/NC 505 | 10 30 80 15 105 55 . 10 5 5 25 10 5 40 70 . 10 . . 15 . 5 10 Destroy Leader 1072 | . 44 158 74 172 . . . 30 . 42 . . 152 124 20 10 . . 246 . . . Allied During Kill 236 | . . . . . . . . . . 194 28 10 4 . . . . . . . . . Successful Hack 192 | . 5 27 16 11 . . 5 . . 12 . . . 66 . . . . 29 . 21 . Select Force Hacks 190 | . . . . . 90 . . . . . . . 100 . . . . . . . . . Disable Machine 600 | . . 15 30 120 . . 15 . . 60 . 45 135 120 . . . . 15 . 30 15 Anti-Garrison Action 200 | . . . . 150 . . . . . . . . . . . . . . . . . 50 Destroy Structure 673 | . 43 1 71 47 . . . 1 14 42 20 20 184 112 . . . . 118 . . . Partial Spotted 15 | . . . . . . . . . . . . . . . . . . . . 15 . . Lose Combat Pursuer 480 | . 30 . 15 30 . . . . . 30 . . 45 75 . . . . 105 45 90 15 Influence Decreases 9285 | 10 350 563 495 1063 743 . 15 15 282 605 377 195 449 1228 909 260 . . 568 635 311 212 Entered New Map 3027 | . . 48 185 212 329 . . 5 132 7 147 105 91 516 344 38 . . . 525 251 92 Time Decay 4738 | 10 350 475 270 470 185 . 15 . 150 498 170 70 278 592 565 222 . . 248 110 60 . Lost Part 850 | . . 20 40 100 . . . 10 . 20 40 . 60 120 . . . . 320 . . 120 Lost Ally 140 | . . . . . . . . . . 80 20 20 20 . . . . . . . . . Purge Threat 530 | . . 20 . 281 229 . . . . . . . . . . . . . . . . . Squads Dispatched 49 | . 2 2 3 6 . . . 1 2 2 . . 13 7 . . . . 9 1 1 . Investigation 12 | . 1 . . 1 . . . . . 1 . . 4 . . . . . 4 . 1 . Extermination 3 | . . . . . . . . . . . . . . 3 . . . . . . . . Reinforcement 19 | . 1 2 3 . . . . 1 2 1 . . 1 2 . . . . 5 1 . . Assault 7 | . . . . 2 . . . . . . . . 3 2 . . . . . . . . Garrison 8 | . . . . 3 . . . . . . . . 5 . . . . . . . . . Intercept . | . . . . . . . . . . . . . . . . . . . . . . . Searches Triggered . | . . . . . . . . . . . . . . . . . . . . . . . Construction Impeded 2 | . . . . . . . . . . 1 . . . 1 . . . . . . . . Haulers Reinforced 2 | . . . . . . . . . . . . . . . . . . . 2 . . . Active Scanning Responses . | . . . . . . . . . . . . . . . . . . . . . . . Cargo Convoy Interrupts . | . . . . . . . . . . . . . . . . . . . . . . . Stealth | -11 -10 -9 -8 -8 -8 -8 -6 -6 -5 -5 -5 -5 -5 -4 -4 -4 -4 -3 -3 -2 -1 -1 --------- Run | Yrd Mat Mat Mat Sto Rec Scr Fac DSF Fac Ext Cet Arc Hub Fac Upp Upp Zhi Pro Res Res Acc Gar Distress Signals 21 | . 3 1 3 . . . . . . 1 2 . 1 2 . . . . 7 . 1 . Communications Jammed . | . . . . . . . . . . . . . . . . . . . . . . . Distress Signals . | . . . . . . . . . . . . . . . . . . . . . . . Times Spotted 417 | . 21 35 22 41 . 18 1 13 2 22 10 5 44 46 7 2 . . 94 9 7 18 Peak Tracking Total 17 | . 6 3 5 9 . 6 . 5 1 5 5 2 7 6 3 2 . . 17 8 7 12 Tactical Retreats 18 | . 1 . 1 2 . . . . . 1 . . 3 2 . . . . 4 1 2 1 Traps | -11 -10 -9 -8 -8 -8 -8 -6 -6 -5 -5 -5 -5 -5 -4 -4 -4 -4 -3 -3 -2 -1 -1 ------- Run | Yrd Mat Mat Mat Sto Rec Scr Fac DSF Fac Ext Cet Arc Hub Fac Upp Upp Zhi Pro Res Res Acc Gar Traps Triggered 19 | . 1 . . 3 . . . 1 3 5 . . 1 . . . . . 2 . 2 1 Indirectly . | . . . . . . . . . . . . . . . . . . . . . . . Trap Hack Attempts . | . . . . . . . . . . . . . . . . . . . . . . . Triggered . | . . . . . . . . . . . . . . . . . . . . . . . Disarmed . | . . . . . . . . . . . . . . . . . . . . . . . Reprogrammed . | . . . . . . . . . . . . . . . . . . . . . . . Reused . | . . . . . . . . . . . . . . . . . . . . . . . Traps Extracted . | . . . . . . . . . . . . . . . . . . . . . . . Installed . | . . . . . . . . . . . . . . . . . . . . . . . Triggered . | . . . . . . . . . . . . . . . . . . . . . . . Machines | -11 -10 -9 -8 -8 -8 -8 -6 -6 -5 -5 -5 -5 -5 -4 -4 -4 -4 -3 -3 -2 -1 -1 ---------- Run | Yrd Mat Mat Mat Sto Rec Scr Fac DSF Fac Ext Cet Arc Hub Fac Upp Upp Zhi Pro Res Res Acc Gar Machines Disabled 44 | . . 1 2 9 . 2 1 . . 5 . 3 9 8 . . . . 1 . 2 1 Max in Single Turn 3 | . . 1 2 3 . 1 1 . . 3 . 1 1 2 . . . . 1 . 1 1 Garrison Access 6 | . . . 1 1 . . . . . . . . 1 . . . . . 3 . . . Network Hub 3 | . . . . . . . . . . . . . 3 . . . . . . . . . Energy Cycler 2 | . . . . . . . . . . 2 . . . . . . . . . . . . Machines Repaired . | . . . . . . . . . . . . . . . . . . . . . . . Machines Dismantled . | . . . . . . . . . . . . . . . . . . . . . . . Machines Sabotaged 2 | . . . . . . . . . . . . . 2 . . . . . . . . . Overloaded Fab Kills . | . . . . . . . . . . . . . . . . . . . . . . . Hacking | -11 -10 -9 -8 -8 -8 -8 -6 -6 -5 -5 -5 -5 -5 -4 -4 -4 -4 -3 -3 -2 -1 -1 --------- Run | Yrd Mat Mat Mat Sto Rec Scr Fac DSF Fac Ext Cet Arc Hub Fac Upp Upp Zhi Pro Res Res Acc Gar Machines Accessed 70 | . 3 6 2 9 5 11 2 . 2 4 . . 6 6 . . 3 . 6 1 2 2 Terminals 41 | . 3 6 1 8 2 . 1 . 2 4 . . 4 4 . . . . 3 . 1 2 Fabricators 1 | . . . . . . . . . . . . . . 1 . . . . . . . . Repair Stations 1 | . . . . . . . . . . . . . . . . . . . 1 . . . Recycling Units 5 | . . . . . 3 . . . . . . . . 1 . . . . . 1 . . Scanalyzers . | . . . . . . . . . . . . . . . . . . . . . . . Garrison Access 8 | . . . 1 1 . . 1 . . . . . 2 . . . . . 2 . 1 . Total Hacks 209 | . 7 8 2 19 11 71 3 . 4 7 . . 16 15 . . 13 . 16 2 5 10 Successful 128 | . 4 4 2 8 5 71 1 . 1 3 . . 4 5 . . 13 . 5 . 1 1 Failed 81 | . 3 4 . 11 6 . 2 . 3 4 . . 12 10 . . . . 11 2 4 9 Catastrophic 23 | . . 2 . 4 1 . . . . . . . 3 4 . . . . 4 1 2 2 Database Lockouts . | . . . . . . . . . . . . . . . . . . . . . . . Manual 51 | . 3 . . 7 3 . . . . 1 . . 11 10 . . . . 9 . . 7 Terminals 97 | . 7 8 1 16 8 . 1 . 4 7 . . 11 8 . . . . 12 . 4 10 Fabricators 1 | . . . . . . . . . . . . . . 1 . . . . . . . . Repair Stations 2 | . . . . . . . . . . . . . . . . . . . 2 . . . Recycling Units 11 | . . . . . 3 . . . . . . . . 6 . . . . . 2 . . Scanalyzers . | . . . . . . . . . . . . . . . . . . . . . . . Garrison Access 14 | . . . 1 3 . . 2 . . . . . 5 . . . . . 2 . 1 . Terminal Hacks 112 | . 4 4 1 8 2 71 1 . 1 2 . . . 2 . . 13 . 2 . . 1 Record 75 | . . . . . . 70 . . . . . . . . . . 5 . . . . . Robot Analysis 4 | . . . . . . . . . . . . . . . . . 4 . . . . . Prototype ID Bank 5 | . 1 . . . . . . . . . . . . . . . 4 . . . . . Open Door 8 | . . . . 5 . . . . 1 2 . . . . . . . . . . . . Open DSF 1 | . . . . . . . 1 . . . . . . . . . . . . . . . Level Access Points 1 | . . 1 . . . . . . . . . . . . . . . . . . . . Branch Access Points 1 | . . . 1 . . . . . . . . . . . . . . . . . . . Emergency Access Points 2 | . 1 . . . . . . . . . . . . . . . . . . . . 1 Terminal Index 1 | . . . . . . . . . . . . . . 1 . . . . . . . . Alert Level 2 | . . . . 1 . . . . . . . . . . . . . . 1 . . . Unreport Threat 5 | . . 1 . 2 2 . . . . . . . . . . . . . . . . . Locate Traps 1 | . . 1 . . . . . . . . . . . . . . . . . . . . Hauler Manifests 2 | . 1 1 . . . . . . . . . . . . . . . . . . . . Registered Components 1 | . 1 . . . . . . . . . . . . . . . . . . . . . Zone Layout 2 | . . . . . . . . . . . . . . 1 . . . . 1 . . . Proto ID Catalog 1 | . . . . . . 1 . . . . . . . . . . . . . . . . Fabricator Hacks . | . . . . . . . . . . . . . . . . . . . . . . . Repair Station Hacks . | . . . . . . . . . . . . . . . . . . . . . . . Recycling Unit Hacks . | . . . . . . . . . . . . . . . . . . . . . . . Scanalyzer . | . . . . . . . . . . . . . . . . . . . . . . . Garrison Access Hacks 5 | . . . 1 . . . . . . . . . 1 . . . . . 2 . 1 . Unlock Access 1 | . . . . . . . . . . . . . . . . . . . . . 1 . Seal Access 4 | . . . 1 . . . . . . . . . 1 . . . . . 2 . . . Unauthorized Hacks 9 | . . . . . 3 . . . . 1 . . 3 1 . . . . 1 . . . Terminals 5 | . . . . . . . . . . 1 . . 3 . . . . . 1 . . . Botnet 2 | . . . . . . . . . . 1 . . . . . . . . 1 . . . Sabotage 3 | . . . . . . . . . . . . . 3 . . . . . . . . . Fabricators 1 | . . . . . . . . . . . . . . 1 . . . . . . . . Haulers 1 | . . . . . . . . . . . . . . 1 . . . . . . . . Repair Stations . | . . . . . . . . . . . . . . . . . . . . . . . Recycling Units 3 | . . . . . 3 . . . . . . . . . . . . . . . . . Tunnel 3 | . . . . . 3 . . . . . . . . . . . . . . . . . Scanalyzers . | . . . . . . . . . . . . . . . . . . . . . . . Garrison Access . | . . . . . . . . . . . . . . . . . . . . . . . Data Cores Recovered 1 | . . . . . . . . . . . . . . 1 . . . . . . . . Used . | . . . . . . . . . . . . . . . . . . . . . . . Hacking Detections 35 | . 2 4 1 7 2 . 2 . 1 3 . . 4 2 . . . . 3 1 2 1 Full Trace Events 4 | . . . . 1 . . . . . 1 . . . . . . . . . . 1 1 Feedback Events . | . . . . . . . . . . . . . . . . . . . . . . . Feedback Blocked . | . . . . . . . . . . . . . . . . . . . . . . . Robot Schematics Acquired . | . . . . . . . . . . . . . . . . . . . . . . . Robots Built . | . . . . . . . . . . . . . . . . . . . . . . . Authchips . | . . . . . . . . . . . . . . . . . . . . . . . Time . | . . . . . . . . . . . . . . . . . . . . . . . Total Robot Build Rating . | . . . . . . . . . . . . . . . . . . . . . . . Part Schematics Acquired . | . . . . . . . . . . . . . . . . . . . . . . . Parts Built . | . . . . . . . . . . . . . . . . . . . . . . . Authchips . | . . . . . . . . . . . . . . . . . . . . . . . Time . | . . . . . . . . . . . . . . . . . . . . . . . Total Part Build Rating . | . . . . . . . . . . . . . . . . . . . . . . . Parts Repaired . | . . . . . . . . . . . . . . . . . . . . . . . Time . | . . . . . . . . . . . . . . . . . . . . . . . Parts Recycled . | . . . . . . . . . . . . . . . . . . . . . . . Recycled Matter . | . . . . . . . . . . . . . . . . . . . . . . . Retrieved Matter . | . . . . . . . . . . . . . . . . . . . . . . . Retrieved Components . | . . . . . . . . . . . . . . . . . . . . . . . Parts Scanalyzed . | . . . . . . . . . . . . . . . . . . . . . . . Part Schematics Acquired . | . . . . . . . . . . . . . . . . . . . . . . . Parts Damaged . | . . . . . . . . . . . . . . . . . . . . . . . Bothacking | -11 -10 -9 -8 -8 -8 -8 -6 -6 -5 -5 -5 -5 -5 -4 -4 -4 -4 -3 -3 -2 -1 -1 ------------ Run | Yrd Mat Mat Mat Sto Rec Scr Fac DSF Fac Ext Cet Arc Hub Fac Upp Upp Zhi Pro Res Res Acc Gar Used RIF Installer . | . . . . . . . . . . . . . . . . . . . . . . . Robots Hacked . | . . . . . . . . . . . . . . . . . . . . . . . Non-combat . | . . . . . . . . . . . . . . . . . . . . . . . Combat . | . . . . . . . . . . . . . . . . . . . . . . . Robot Hacks Applied . | . . . . . . . . . . . . . . . . . . . . . . . Relay Couplers Released 3 | . . . . 2 . . . . . . . . . . . . . . 1 . . . Machine Destruction 3 | . . . . 2 . . . . . . . . . . . . . . 1 . . . Fabnet Peak Effective % . | . . . . . . . . . . . . . . . . . . . . . . . Robots Rewired 5 | . . . . . . . . . . 5 . . . . . . . . . . . . Allies Hacked . | . . . . . . . . . . . . . . . . . . . . . . . Hacks Repelled . | . . . . . . . . . . . . . . . . . . . . . . . Allies | -11 -10 -9 -8 -8 -8 -8 -6 -6 -5 -5 -5 -5 -5 -4 -4 -4 -4 -3 -3 -2 -1 -1 -------- Run | Yrd Mat Mat Mat Sto Rec Scr Fac DSF Fac Ext Cet Arc Hub Fac Upp Upp Zhi Pro Res Res Acc Gar Total Allies 10 | . . . . . . . . . . 10 . . . . . . . . . . . . Largest Group 8 | . . . . . . . . . . 8 3 2 1 . . . . . . . . . Highest-Rated Group 202 | . . . . . . . . . . 202 101 67 39 . . . . . . . . . Highest-Rated Ally 39 | . . . . . . . . . . 39 39 39 39 . . . . . . . . . Total Orders . | . . . . . . . . . . . . . . . . . . . . . . . Ally Attacks 170 | . . . . . . . . . . 89 60 15 6 . . . . . . . . . Total Damage 3114 | . . . . . . . . . . 1945 914 176 79 . . . . . . . . . Kills 17 | . . . . . . . . . . 12 4 1 . . . . . . . . . . Allies Corrupted . | . . . . . . . . . . . . . . . . . . . . . . . Allies Melted 7 | . . . . . . 7 . . . . . . . . . . . . . . . . Intel | -11 -10 -9 -8 -8 -8 -8 -6 -6 -5 -5 -5 -5 -5 -4 -4 -4 -4 -3 -3 -2 -1 -1 ------- Run | Yrd Mat Mat Mat Sto Rec Scr Fac DSF Fac Ext Cet Arc Hub Fac Upp Upp Zhi Pro Res Res Acc Gar Active Infowar (turns) 10685 | 49 883 318 . . . . 126 42 241 688 . . . 1026 1677 842 415 562 3277 220 135 184 Optics 543 | . . . . . . . . 2 . . . . . . . . . . 2 220 135 184 Sensors 7450 | . . . . . . . . . . . . . . 383 1677 841 415 560 3097 219 135 123 Structural 7518 | . . . . . . . 126 40 241 688 . . . 764 1577 841 411 562 2268 . . . Seismic 1250 | 49 883 318 . . . . . . . . . . . . . . . . . . . . Robot Analysis Total 4 | . . . . . . . . . . . . . . . . . 4 . . . . . Derelict Logs Recovered 2 | . . . . . . . . . . . . . . . 2 . . . . . . . Drone Launches . | . . . . . . . . . . . . . . . . . . . . . . . Drone Recoveries . | . . . . . . . . . . . . . . . . . . . . . . . Exploration | -11 -10 -9 -8 -8 -8 -8 -6 -6 -5 -5 -5 -5 -5 -4 -4 -4 -4 -3 -3 -2 -1 -1 ------------- Run | Yrd Mat Mat Mat Sto Rec Scr Fac DSF Fac Ext Cet Arc Hub Fac Upp Upp Zhi Pro Res Res Acc Gar Turns Passed 22229 | 122 883 1722 596 1624 583 3635 178 323 300 1570 350 145 607 1869 1692 860 415 562 3654 220 135 184 Spaces Moved 10361 | 56 367 560 223 566 222 1524 93 135 205 793 156 72 195 854 874 452 239 299 1730 225 301 220 Core 93 | 12 . . . . . . . . . . . . . . . . . . . . . 81 Treads 8380 | 44 367 560 223 566 222 1524 93 28 . . 129 72 195 854 874 452 239 299 1639 . . . Legs 1132 | . . . . . . . . 107 205 793 27 . . . . . . . . . . . Wheels . | . . . . . . . . . . . . . . . . . . . . . . . Hover . | . . . . . . . . . . . . . . . . . . . . . . . Flight 756 | . . . . . . . . . . . . . . . . . . . 91 225 301 139 Fastest Speed 37 | 50 160 240 160 160 240 160 160 120 120 120 160 160 160 160 165 165 165 165 37 37 37 37 Average Speed 168 | 136 192 240 201 211 240 210 160 130 123 158 164 160 160 164 165 165 165 165 151 37 37 50 Slowest Speed 270 | 160 240 240 240 240 240 240 160 240 270 175 240 160 160 166 165 165 165 165 240 37 37 150 Overloaded Moves . | . . . . . . . . . . . . . . . . . . . . . . . Propulsion Burnouts . | . . . . . . . . . . . . . . . . . . . . . . . Robots Hopped 14 | . . . . . . . . . . . . . . . . . . . 3 . 5 6 Potential Cave-ins 4 | . . . . . . . . . . . . . . . . . . . 4 . . . Cave-ins Triggered 2 | . . . . . . 1 . . . . . . 1 . . . . . . . . . Teleports 1 | . . . . . . . . . . . . . . . . . . . . . . 1 Exploration Rate (%) 48 | 6 66 63 29 76 49 87 3 94 7 87 63 69 32 27 86 61 60 55 45 8 11 39 Regions Visited 22 Branch Regions 11 Pre-discovered Areas 8 | . . . . 1 3 . . . . . . . . . 1 . 3 . . . . . Known Exits Taken 12 | . . 1 1 . . 1 1 . . 1 . . 1 1 1 1 1 1 . . 1 . Unknown Exits Taken 9 | 1 1 . . 1 1 . . . 1 . 1 1 . . . . . . 1 1 . . Scrap Searched 9 | . . . . . . 5 . . . . . . . . 2 1 . 1 . . . . Spaces Dug 81 | . 3 . . . . 5 . 1 7 1 . . . 18 6 6 . 8 26 . . . Terrain Destroyed 492 | . 45 . 68 47 . 28 1 4 8 25 3 13 93 55 10 10 . 9 73 . . . Melee 10 | . 3 . . . . 5 . 1 . 1 . . . . . . . . . . . . Projectile 244 | . . . . . . . 1 3 8 12 3 13 93 51 10 10 . 9 31 . . . AOE 237 | . 42 . 68 47 . 23 . . . 12 . . . 4 . . . . 41 . . . Terrain Rammed . | . . . . . . . . . . . . . . . . . . . . . . . Walls Destroyed . | . . . . . . . . . . . . . . . . . . . . . . . Machines Disabled . | . . . . . . . . . . . . . . . . . . . . . . . Actions | -11 -10 -9 -8 -8 -8 -8 -6 -6 -5 -5 -5 -5 -5 -4 -4 -4 -4 -3 -3 -2 -1 -1 --------- Run | Yrd Mat Mat Mat Sto Rec Scr Fac DSF Fac Ext Cet Arc Hub Fac Upp Upp Zhi Pro Res Res Acc Gar Total 13630 | 77 465 759 303 786 246 1912 113 220 242 1014 221 91 368 1170 1086 537 258 353 2475 358 315 261 Wait 1660 | . 32 45 9 39 4 329 . 12 . 70 22 11 68 130 187 62 . 42 470 120 . 8 Move 10316 | 55 366 559 222 565 221 1523 92 134 204 792 155 71 195 853 873 451 238 298 1724 224 292 209 Hop 10 | . . . . . . . . . . . . . . . . . . . 2 . 4 4 Pick Up 128 | 3 9 15 9 7 1 9 4 4 6 3 4 1 11 26 . . 1 . 14 1 . . Fast Attach 96 | 7 1 1 3 7 . . . 6 10 3 5 . 4 6 . . 8 . 23 4 4 4 Attach 58 | . . 4 4 7 . 1 4 1 4 1 2 . 4 8 . . . . 10 2 3 3 Detach 12 | . 1 . . 1 . . . . 1 . . . . 2 . . . . . 1 3 3 Swap 289 | . 15 25 16 28 1 13 5 12 3 20 6 . 12 50 9 4 3 2 59 4 1 1 Drop 171 | . 3 23 11 19 2 13 1 11 6 10 10 1 7 14 . . 8 . 25 2 3 2 Fire 781 | 12 32 87 29 106 17 17 5 34 8 40 17 7 65 80 17 20 . 11 148 . 5 24 Melee 24 | . 6 . . 2 . 7 2 1 . 6 . . . . . . . . . . . . Ram 3 | . . . . . . . . . . . . . . . . . . . . . . 3 Kick 1 | . . . . . . . . . . 1 . . . . . . . . . . . . Crush 8 | . . . . 5 . . . . . . . . 2 1 . . . . . . . . Escape Stasis 30 | . . . . . . . . 5 . 25 . . . . . . . . . . . . Rewire 43 | . . . . . . . . . . 43 . . . . . . . . . . . . Trap . | . . . . . . . . . . . . . . . . . . . . . . . Miscellaneous . | . . . . . . . . . . . . . . . . . . . . . . . Route ------- -11/Scrapyard -10/Materials (discovered 3 exits: *Mat x2 / [*Min]) -9/Materials (discovered 4 exits: *Mat x3 / [*Min]) -8/Materials (discovered 3 exits: [*Fac] / *Sto x2) -8/Storage (discovered 2 exits: [*Fac] / *Rec) -8/Recycling -8/Scraptown (discovered 2 exits: *Fac x2) -6/Factory -6/DSF -5/Factory -5/Extension (discovered 2 exits: *Fac / *Cet) -5/Cetus (discovered 2 exits: *Fac / [*Arc]) -5/Archives (discovered 3 exits: *Fac / *Hub x2) -5/Hub_04(d) (discovered 2 exits: *Fac x2) -4/Factory (discovered 2 exits: *Res / *Upp) -4/Upper Caves -4/Upper Caves (discovered 2 exits: *Res / *Zhi) -4/Zhirov -3/Proximity Caves -3/Research -2/Research -1/Access -1/Garrison (discovered 1 exit: *Acc) History --------- Turn | Location | Event 28 | -11/Scrapyard | Discovered new exit (range 16) 123 | -11/Scrapyard | Entered Materials 261 | -10/Materials | Discovered new exit (range 15) 314 | -10/Materials | Build established: Mutant 730 | -10/Materials | Discovered new exit (range 16) 996 | -10/Materials | Discovered new exit (range 5) 1006 | -10/Materials | Entered another Materials area 1006 | -9/Materials | Evolved 2 slots: Utility x1, Weapon x1 1259 | -9/Materials | Discovered new exit (range 13) 1305 | -9/Materials | Build established: Tank 1602 | -9/Materials | Discovered new exit (range 12) 1783 | -9/Materials | Build established: Scavenger-Tank 2044 | -9/Materials | Discovered new exit (range 7) 2365 | -9/Materials | Identified exit to Materials 2728 | -9/Materials | Entered another Materials area 2728 | -8/Materials | Evolved 2 slots: Propulsion x1, Weapon x1 2926 | -8/Materials | Identified exit to Storage 2995 | -8/Materials | Discovered new exit (range 10) 3324 | -8/Materials | Entered Storage 3428 | -8/Storage | Learned location of Armory (-4) 4014 | -8/Storage | Garrison activated, responded to threat 4436 | -8/Storage | Destroyed 8 combat bots 4446 | -8/Storage | Lost 6 parts (1p2n1u2w) 4457 | -8/Storage | System corruption reached 10% 4664 | -8/Storage | Discovered new exit (range 13) 4938 | -8/Storage | Used back door to open Recycling access 4938 | -8/Storage | Discovered new exit (range 5) 4948 | -8/Storage | Entered Recycling 5476 | -8/Recycling | Scanned before Scraplab entrance 5509 | -8/Recycling | Entered Scraplab 5528 | -8/Recycling | Discovered new exit (range 2) 5531 | -8/Recycling | Entered Scraptown 5531 | -8/Scraptown | System corruption cleaned by C-Scrubber 5563 | -8/Scraptown | Heard Great Nut preacher, LISTEN AND RECITE! 6046 | -8/Scraptown | Visited Red Mages 6209 | -8/Scraptown | Visited Cave Peace 6278 | -8/Scraptown | Visited TADAMA 6490 | -8/Scraptown | Visited Awakened 6941 | -8/Scraptown | Visited UFD Registry 6941 | -8/Scraptown | Registered with UFD as "Railbox" 6974 | -8/Scraptown | Visited Cyclists 7010 | -8/Scraptown | Entered Cyclist Reading Room 7066 | -8/Scraptown | Visited Supply Room 7085 | -8/Scraptown | Visited Symbiants 7226 | -8/Scraptown | Visited Scrap Suit Storage 7373 | -8/Scraptown | Visited Abandonware Association 7404 | -8/Scraptown | Learned abandonware demo "ERRANTS.EXE" 7404 | -8/Scraptown | Learned abandonware demo "MELTYB.EXE" 7459 | -8/Scraptown | Visited LU-1G1's Boring Crew 7764 | -8/Scraptown | Visited Curators Association 7843 | -8/Scraptown | Visited DA-N13 Charitable Foundation 7853 | -8/Scraptown | Found DCF Scrap (26 items) 7923 | -8/Scraptown | Visited A0-MCA Data Center 7932 | -8/Scraptown | Given an A rating by A0-MCA 7953 | -8/Scraptown | Visited Cartography Club 8118 | -8/Scraptown | Visited Derelict Rescue Squad 8169 | -8/Scraptown | Visited Science Guys 8224 | -8/Scraptown | Visited Junk Cannon Lab 8535 | -8/Scraptown | Met Optimus 8535 | -8/Scraptown | Accepted into 0bPrime 8935 | -8/Scraptown | Civil war broke out across Scraptown 8978 | -8/Scraptown | Core integrity fell below 50% 8995 | -8/Scraptown | Lost 5 allies 9010 | -8/Scraptown | Identified exit to Factory 9053 | -8/Scraptown | Found Prototype Processor 9101 | -8/Scraptown | Optimus destroyed in the chaos of civil war 9128 | -8/Scraptown | Found Unknown Device 9146 | -8/Scraptown | Crushed by falling debris 9166 | -8/Scraptown | Entered Factory 9166 | -6/Factory | Evolved 4 slots: Power x1, Propulsion x1, Utility x2 9169 | -6/Factory | Identified Deep Structural Scanner 9344 | -6/Factory | Identified exit to DSF 9344 | -6/Factory | Entered DSF 9397 | -6/DSF | Additional patrols routed to DSF 9557 | -6/DSF | Discovered new exit (range 14) 9615 | -6/DSF | Sterilization system engaged 9635 | -6/DSF | Ambient heat levels rising (+10) 9650 | -6/DSF | Ambient heat levels rising (+10) 9665 | -6/DSF | Ambient heat levels rising (+10) 9667 | -6/DSF | Entered Factory 9667 | -5/Factory | Evolved 2 slots: Utility x2 9957 | -5/Factory | Discovered new exit (range 10) 9967 | -5/Factory | Entered Extension 10048 | -5/Extension | Rescued a captive Derelict 10107 | -5/Extension | Build established: Derelict-Tank 10148 | -5/Extension | Rescued a captive Derelict 10150 | -5/Extension | Rescued a captive Derelict 10550 | -5/Extension | Build established: Commander-Tank 10807 | -5/Extension | Spotted B-75 Beast 10831 | -5/Extension | Allies destroyed B-75 Beast 10839 | -5/Extension | Spotted B-75 Beast 10842 | -5/Extension | Disrupted transfer network 10850 | -5/Extension | Allies destroyed B-75 Beast 10886 | -5/Extension | Lost 4 allies 10930 | -5/Extension | Energy Cycler disabled 10930 | -5/Extension | Rescued a captive Derelict 10930 | -5/Extension | Rescued a captive Derelict 10941 | -5/Extension | Rescued a captive Derelict 10943 | -5/Extension | Rescued a captive Derelict 11127 | -5/Extension | Build established: Scavenger-Tank 11327 | -5/Extension | Discovered new exit (range 10) 11332 | -5/Extension | Discovered new exit (range 6) 11506 | -5/Extension | Identified exit to Cetus 11510 | -5/Extension | Identified exit to Factory 11537 | -5/Extension | Entered Cetus 11537 | -5/Cetus | Accompanied by 3 allies 11563 | -5/Cetus | Spotted Cetus Guard 11563 | -5/Cetus | Spotted Cetus Guard 11566 | -5/Cetus | Allies destroyed Cetus Guard 11567 | -5/Cetus | Spotted Cetus Guard 11567 | -5/Cetus | Spotted Cetus Guard 11570 | -5/Cetus | Allies destroyed Cetus Guard 11582 | -5/Cetus | Destroyed Cetus Guard 11599 | -5/Cetus | Destroyed Cetus Guard 11733 | -5/Cetus | Discovered new exit (range 16) 11766 | -5/Cetus | Spotted Cetus Guard 11766 | -5/Cetus | Spotted Cetus Guard 11770 | -5/Cetus | Spotted Cetus Guard 11770 | -5/Cetus | Spotted Cetus Guard 11776 | -5/Cetus | Destroyed Cetus Guard 11779 | -5/Cetus | Destroyed Cetus Guard 11781 | -5/Cetus | Destroyed Cetus Guard 11790 | -5/Cetus | Destroyed Cetus Guard 11796 | -5/Cetus | Discovered exit to Factory (range 15) 11806 | -5/Cetus | Met Revision 17 11887 | -5/Cetus | Entered Archives 11887 | -5/Archives | Accompanied by 2 allies 11949 | -5/Archives | Discovered new exit (range 16) 11973 | -5/Archives | Discovered exit to Factory (range 16) 11997 | -5/Archives | Discovered new exit (range 16) 12032 | -5/Archives | Entered Hub_04(d) 12032 | -5/Hub_04(d) | Accompanied by 1 ally 12036 | -5/Hub_04(d) | Network Hub disabled 12043 | -5/Hub_04(d) | Network Hub disabled 12055 | -5/Hub_04(d) | Garrison activated, responded to threat 12056 | -5/Hub_04(d) | Spotted Lightning 12058 | -5/Hub_04(d) | Garrison activated, responded to threat 12083 | -5/Hub_04(d) | Spotted Lightning 12087 | -5/Hub_04(d) | Destroyed Lightning 12109 | -5/Hub_04(d) | Destroyed Lightning 12122 | -5/Hub_04(d) | Found Prototype Processor 12122 | -5/Hub_04(d) | Identified Exp. Targeting Computer 12130 | -5/Hub_04(d) | Found Prototype Device 12130 | -5/Hub_04(d) | Identified Exp. EM Shield 12332 | -5/Hub_04(d) | First assault squad dispatched 12392 | -5/Hub_04(d) | Discovered exit to Factory (range 6) 12447 | -5/Hub_04(d) | Destroyed 7 combat bots 12500 | -5/Hub_04(d) | Discovered exit to Factory (range 14) 12533 | -5/Hub_04(d) | Crushed by falling debris 12548 | -5/Hub_04(d) | Spotted Lightning 12563 | -5/Hub_04(d) | System corruption reached 10% 12580 | -5/Hub_04(d) | Destroyed Lightning 12619 | -5/Hub_04(d) | Found Exp. Targeting Computer 12628 | -5/Hub_04(d) | Network Hub disabled 12639 | -5/Hub_04(d) | Entered Factory 12639 | -4/Factory | Evolved 2 slots: Propulsion x1, Weapon x1 12995 | -4/Factory | Destroyed 7 combat bots 13139 | -4/Factory | First assault squad dispatched 13413 | -4/Factory | Lost 8 parts (1n4u3w) 13967 | -4/Factory | Discovered new exit (range 18) 14072 | -4/Factory | Identified exit to Research 14485 | -4/Factory | Discovered new exit (range 15) 14506 | -4/Factory | Identified exit to Upper Caves 14508 | -4/Factory | Entered Upper Caves 14900 | -4/Upper Caves | Learned location of Testing (-2) 15035 | -4/Upper Caves | Attracted the attention of an 0b10 checkpoint 15275 | -4/Upper Caves | Learned Research terminal intel 15424 | -4/Upper Caves | Build established: Scavenger-Skirmisher 16182 | -4/Upper Caves | Discovered new exit (range 11) 16199 | -4/Upper Caves | Identified exit to Upper Caves 16200 | -4/Upper Caves | Entered another Upper Caves area 16384 | -4/Upper Caves | Discovered exit to Research (range 9) 16759 | -4/Upper Caves | Encountered a Warlord checkpoint 16961 | -4/Upper Caves | Discovered new exit (range 14) 17058 | -4/Upper Caves | Identified exit to Zhirov 17060 | -4/Upper Caves | Entered Zhirov 17063 | -4/Zhirov | Discovered new exit (range 3) 17093 | -4/Zhirov | Met Zhirov 17122 | -4/Zhirov | Learned location of Quarantine (-3) 17122 | -4/Zhirov | Learned location of Command (-1) 17136 | -4/Zhirov | Zhirov requested help retrieving the SGEMP Prototype 17160 | -4/Zhirov | Found Alien Artifact 17160 | -4/Zhirov | Identified Integrated Dissipator 17160 | -4/Zhirov | Installed Integrated Dissipator, increased core heat dissipation (+20) 17357 | -4/Zhirov | Build established: Scavenger-Mutant 17369 | -4/Zhirov | Found Alien Artifact 17473 | -4/Zhirov | Identified exit to Proximity Caves 17475 | -4/Zhirov | Entered Proximity Caves 17753 | -3/Proximity Caves | Build established: Scavenger-Skirmisher 17910 | -3/Proximity Caves | Discovered exit to Research (range 8) 18037 | -3/Proximity Caves | Entered Research 18037 | -3/Research | Evolved 2 slots: Power x1, Utility x1 18038 | -3/Research | Loaded intel: 25 terminal locations 18237 | -3/Research | Revision forces began assault on 0b10 18312 | -3/Research | Met up with Revision 17++ 18321 | -3/Research | Build established: Scavenger-Tank 18737 | -3/Research | Research terminal network offline 18798 | -3/Research | Found Powered Armor 18801 | -3/Research | Found Powered Armor 18966 | -3/Research | Found Exp. Focal Shield 19276 | -3/Research | Found Gamma Bomb Array 19767 | -3/Research | Spotted Striker 19775 | -3/Research | Destroyed Striker 20152 | -3/Research | Spotted Executioner 20153 | -3/Research | Spotted Striker 20160 | -3/Research | Destroyed Executioner 20164 | -3/Research | Destroyed Striker 20174 | -3/Research | Found Exp. Targeting Computer 20188 | -3/Research | Found Prototype Device 20188 | -3/Research | Identified Adv. Kinecellerator 20192 | -3/Research | Found Prototype Processor 20192 | -3/Research | Identified Exp. Core Analyzer 20197 | -3/Research | Found Exp. Core Analyzer 20333 | -3/Research | Spotted Striker 20336 | -3/Research | Spotted Striker 20342 | -3/Research | Destroyed Striker 20481 | -3/Research | Spotted Striker 20482 | -3/Research | Destroyed Striker 20669 | -3/Research | Spotted Striker 20669 | -3/Research | Destroyed Striker 20999 | -3/Research | Spotted Striker 21057 | -3/Research | Spotted Striker 21065 | -3/Research | Spotted Striker 21068 | -3/Research | Destroyed Striker 21076 | -3/Research | Destroyed Striker 21115 | -3/Research | Destroyed 11 combat bots 21192 | -3/Research | Spotted Striker 21199 | -3/Research | Spotted Striker 21200 | -3/Research | Destroyed Striker 21220 | -3/Research | Destroyed Striker 21220 | -3/Research | Spotted Striker 21235 | -3/Research | Destroyed Striker 21252 | -3/Research | Identified Expert System 21262 | -3/Research | Destroyed 7 combat bots 21300 | -3/Research | Spotted Striker 21300 | -3/Research | Destroyed Striker 21319 | -3/Research | Spotted Striker 21320 | -3/Research | Destroyed Striker 21328 | -3/Research | Spotted Executioner 21339 | -3/Research | Destroyed Executioner 21354 | -3/Research | Spotted Striker 21355 | -3/Research | Spotted Striker 21360 | -3/Research | Destroyed 9 combat bots 21364 | -3/Research | Destroyed Striker 21373 | -3/Research | Destroyed Striker 21382 | -3/Research | Spotted Striker 21399 | -3/Research | Destroyed Striker 21420 | -3/Research | Spotted Striker 21422 | -3/Research | Spotted Striker 21426 | -3/Research | Destroyed Striker 21433 | -3/Research | Spotted Striker 21434 | -3/Research | Spotted Striker 21447 | -3/Research | Destroyed 8 combat bots 21458 | -3/Research | Destroyed Striker 21463 | -3/Research | Spotted Striker 21465 | -3/Research | Spotted Striker 21467 | -3/Research | Destroyed Striker 21468 | -3/Research | Destroyed Striker 21494 | -3/Research | Destroyed Striker 21499 | -3/Research | Destroyed Striker 21527 | -3/Research | Lost 13 parts (2p2n3u6w) 21569 | -3/Research | Spotted Executioner 21571 | -3/Research | Spotted Striker 21574 | -3/Research | Destroyed Executioner 21580 | -3/Research | Destroyed Striker 21589 | -3/Research | Spotted Striker 21594 | -3/Research | Spotted Striker 21594 | -3/Research | Spotted Executioner 21606 | -3/Research | Destroyed Striker 21614 | -3/Research | Destroyed Executioner 21630 | -3/Research | Spotted Striker 21632 | -3/Research | Spotted Executioner 21632 | -3/Research | Spotted Executioner 21634 | -3/Research | Spotted Striker 21640 | -3/Research | Core integrity fell below 50% 21642 | -3/Research | System corruption reached 10% 21646 | -3/Research | System corruption reached 30% 21655 | -3/Research | Spotted Striker 21681 | -3/Research | Discovered new exit (range 16) 21684 | -3/Research | Core integrity fell below 20% 21687 | -3/Research | Found Exp. Core Analyzer 21691 | -3/Research | Entered another Research area 21691 | -2/Research | Evolved 2 slots: Utility x2 21712 | -2/Research | Lost 14 parts (3p5n3u3w) 21908 | -2/Research | Discovered new exit (range 4) 21911 | -2/Research | Entered Access 21911 | -1/Access | Evolved 2 slots: Propulsion x2 21936 | -1/Access | Build established: Scavenger-Mutant 22044 | -1/Access | Spotted B-99 Colossus 22046 | -1/Access | Identified exit to Garrison 22046 | -1/Access | Entered Garrison 22112 | -1/Garrison | Triggered checkpoint 22121 | -1/Garrison | Identified Transdimensional Reconstructor 22121 | -1/Garrison | Warped through subspace 22134 | -1/Garrison | Spotted B-99 Colossus 22142 | -1/Garrison | Triggered checkpoint 22147 | -1/Garrison | Discovered new exit (range 14) 22153 | -1/Garrison | Identified exit to Access 22158 | -1/Garrison | Attempted to access garrison exit controls, blocked by remote lockdown 22177 | -1/Garrison | Lost 7 parts (2p3n2u) 22217 | -1/Garrison | Core integrity fell below 50% 22227 | -1/Garrison | Core integrity fell below 20% 22230 | -1/Garrison | Destroyed by B-99 Colossus with Multirail Last Messages --------------- 22213_ Penetrated by Slug. 22216_ Knocked back. 22216_ Penetrated by Slug. 22216_ Slug penetrates P-80 Master. 22216_ Slug penetrates Wall. 22223_ Exp. Core Analyzer destroyed. 22223_ Penetrated by Slug. 22223_ Slug penetrates Reinforced Barrier. 22226_ Slammed into B-99 Colossus. 22226_ Knocked back. 22226_ Penetrated by Slug. 22226_ Hacking Suite destroyed. 22226_ Penetrated by Slug. 22228_ Slammed into B-99 Colossus. 22229_ Penetrated by Slug. 22229_ Slug penetrates B-99 Colossus. 22229_ Adv. Signal Interpreter destroyed. 22230_ Knocked back. 22230_ Slug penetrates Y-72 Warden. 22230_ Penetrated by Slug. Map ----- +----------------------------------------------------+ | ?????????????????????????????????????????????????? | | ?????????????????????????????????????????????????? | | ?????????????????????????????????????????????????? | | ?????????????????????????????????????????????????? | | ?????????????????????????????????????????????????? | | ?????????????????????????????????????????????????? | | ?????????????????????????????????????????????????? | | ?????????????????????????????????????????????????? | | ?????????????????????????????????????????????????? | | ?????????????????????????????????????????????????? | | ?????????????????????????????????????????????????? | | ?????????????????????????????????????????????????? | | ?????????????????????????????????????????????????? | | ????????????????????????####?????????????????????? | | ??????????????????????### #?????#???????????????? | | ??????????????????????#"# #???? ????????????????? | | ??????????????????????#" #???+##???????????????? | | ??????????????????????#" #??? !#???????????????? | | ???????????????????????" #?? !//??????????????? | | ????????????????????????# #?Y !//??????????????? | | ????????????????????????# ## !#???????????????? | | ????????????????????????# Y !#???????????????? | | ????????????????????????# !#???????????????? | | ??????????????????????### p## !#???????????????? | | ?????????????????+???## #?##+##???????????????? | | ??????????????????????+ %@ #?????????????????????? | | ??????????????????????#% Y#??????????????????#### | | ??????????????????????### p#??????????????????# | | ??????????????###+#######BB#################### < | | ??????????????# BB% % | | ??????????????# | | ??????????????# | | +?????????????# #######++################### ### | | ??????????????# ##????# #???????????????### ### | | ??????????????#% #????# #???????????????#% ! | | ????+?????????# ####### #???????????????# %[ | | ??????????????# + #???????????????#% | | ??????????????# ####### #???????????????# | | ??????????????# #?????# #???????????????# | | ??????????????# #?????# #???????????????# | | +????????????? ####### #???????????????# | | ????????????? + #???????????????# [ | | ???????????? + #???????????????# [ | | ??????????? "# ##########???????????????# | | ?????????? ## #????????????????????????####### | | ?????????? ? "??????????????????????????????? | | ????????? ? "??????????????????????????????? | | ???????? ?? "??????????????????????????????? | | ??????? ? "??????????????????????????????? | | ?????? ## ??## ???????????????????????????????? | +----------------------------------------------------+ Best States ------------- Heat Dissipation 93 Coolant Potential 100 Energy Generation 67 Energy Capacity 680 Matter Stores 300 Matter Capacity 300 Sight Range 23 Robot Scan Range 18 Terrain Scan Density 10 Armor Coverage 1200 Resistance: KI 30 Resistance: EM 75 Propulsion Shielding 66 Utility Shielding 33 Weapon Cycling 20 Evasion (%) 80 Targeting Accuracy 24 Core Analysis 12 Recoil Reduction 5 Kinecelleration 40 Salvage Targeting 4 Offensive Hacking 10 Item Schematics ----------------- None Robot Schematics ------------------ None Fabricated ------------ Nothing Repaired ---------- Nothing Alien Tech Used ----------------- Integrated Dissipator Transdimensional Reconstructor Achievements -------------- None Challenges ------------ None Game ------ Seed LauncherProcessingField Manual? 0 Play Time 02:59:04 Cumulative 344.5 hours Start 2025.05.30 @ 17:46:17 End 2025.06.07 @ 21:23:58 Sessions 9 Manual Loads 0 Difficulty Rogue Special Mode None Game No. 167 Rogue 104 Adventurer 16 Explorer 47 Win Type - Total 43 Types 24/5/6/1/0/2/2/1/1/1 Lore% 93 Gallery% 88 Achievement% 83 Wizard Run 0 Options --------- Layout 2 ASCII 0 Keyboard 0 Movement Mouse Keybinds 0 Fullscreen 1 Font 32/Tamsyn Map View 50x44 Zoom Use 0% Tactical HUD 1 Map Filters NONE Filters NONE Steam 1 RUN: 989e1dd2-47a0-4118-af2a-422b830e09e6